Cogmind - Beta 16 *** ADVENTURER MODE // 2025.10.28 @ 13:13:42 Player: kiesta07 Result: Destroyed by as-79765 with Assembled Blade Performance ------------- Evolutions (0) 0 Regions Visited (2) 400 Robots Destroyed (8) 40 Value Destroyed (298) 298 Prototype IDs (0) 0 Alien Tech Used (0) 0 Bonus (0) 0 TOTAL SCORE: 738 Bonus ------- None Cogmind --------- Core Integrity 0/250 Matter 271/300 Energy 250/250 System Corruption 0% Temperature Cool (0) Movement Core (200) Ox3 Location -10/Mines Parts ------- > --- POWER (1) -------- Ion Engine > --- PROPULSION (2) --- (None) > --- UTILITY (2) ------ Small Storage Unit Power Shielding > --- WEAPON (2) ------- (None) > --- INVENTORY (8) ---- (None) Peak State ------------ > --- POWER ------------ Light Ion Engine > --- PROPULSION ------- Aluminum Leg Aluminum Leg > --- UTILITY ---------- Small Storage Unit > --- WEAPON ----------- Assault Rifle Assault Rifle > --- INVENTORY -------- (None) [Rating: 6] Favorites ----------- Power Light Ion Engine Engine Light Ion Engine Propulsion Aluminum Leg Treads Light Treads Leg Aluminum Leg Utility Small Storage Unit Storage Small Storage Unit Protection Power Shielding Weapon Assault Rifle Ballistic Gun Assault Rifle Build | -11 -10 -10 ------- Run | Yrd Mat Min Slots Evolved . | . . . Power . | . . . Propulsion . | . . . Utility . | . . . Weapon . | . . . Parts Attached 12 | 8 4 . Power 2 | 1 1 . Engine 2 | 1 1 . Core . | . . . Reactor . | . . . Propulsion 6 | 4 2 . Treads 2 | 2 . . Leg 4 | 2 2 . Wheel . | . . . Hover . | . . . Flight . | . . . Utility 2 | 1 1 . Device . | . . . Storage 1 | 1 . . Processor . | . . . Hackware . | . . . Protection 1 | . 1 . Artifact . | . . . Weapon 2 | 2 . . Energy Gun . | . . . Energy Cannon . | . . . Ballistic Gun 2 | 2 . . Ballistic Cannon . | . . . Launcher . | . . . Special Weapon . | . . . Impact Weapon . | . . . Slashing Weapon . | . . . Piercing Weapon . | . . . Special Melee Weapon . | . . . Unidentified Prototypes . | . . . Parts Lost 6 | . 4 2 Power 1 | . 1 . Propulsion 3 | . 2 1 Utility . | . . . Weapon 2 | . 1 1 Highest Loss Streak 3 | . 3 2 To Critical Strikes . | . . . Average Backups . | . . . Power . | . . . Propulsion . | . . . Utility . | . . . Weapon . | . . . Tool/Special . | . . . Unused Backups . | . . . Power . | . . . Propulsion . | . . . Utility . | . . . Weapon . | . . . Tool/Special . | . . . Average Slot Usage (%) 73 | . 72 78 Engine 10 | . 9 14 Leg 25 | . 24 28 Storage 14 | . 14 14 Protection 2 | . . 14 Ballistic Gun 20 | . 22 7 Peak Build Rating 6 | 6 6 6 Average Rating 4 | 3 5 5 On Entrance 4 | . 6 6 Avg Prop Armor Cover (%) . | . . . Naked Turns . | . . . Heaviest Build 13 | 12 13 13 Greatest Support 40 | 40 20 20 Greatest Overweight (x) 3 | . 2 3 Average Overweight (x) . | . . . Largest Inventory Capacity 8 | 8 8 8 Average Capacity 7 | 6 8 8 Most Carried 3 | 3 2 . Average Carried . | . . . Final Capacity 8 | 8 8 8 Final Carried . | . . . Class Distribution -------------------- 100% | Mutant Dominant Class ---------------- Mutant | -10/Materials Mutant | -10/Mines Resources | -11 -10 -10 ----------- Run | Yrd Mat Min Matter Collected 433 | 196 237 . Remotely . | . . . Salvage Created 319 | . 319 . Parts 20 | . 20 . Haulers Intercepted . | . . . Recyclers Shooed . | . . . Parts Field Recycled . | . . . Retrieved Matter . | . . . Parts Self-Destructed . | . . . Prevented . | . . . Parts Restored . | . . . Kills | -11 -10 -10 ------- Run | Yrd Mat Min Combat Hostiles Destroyed 8 | . 8 . Guns 8 | . 8 . Classes Destroyed 1 | . 1 . Grunt 8 | . 8 . Best Kill Streak 2 | . 2 . Combat Bots Only 2 | . 2 . Max Kills in Single Turn 1 | . 1 . Gunslinging . | . . . Exploded . | . . . Melee . | . . . Uniques/NPCs Destroyed . | . . . Combat | -11 -10 -10 -------- Run | Yrd Mat Min Hostile Shots Fired 133 | . 108 25 Missed 53 | . 44 9 Hits 80 | . 64 16 Melee 10 | . . 10 Projectile 70 | . 64 6 Critical Strikes 2 | . 1 1 Part Disruptions 1 | . . 1 Actively Blocked 1 | . . 1 Damage Taken 918 | . 611 307 Core 266 | . 137 129 Absorbed by Shields . | . . . Redirected to Shielding 14 | . 3 11 Ignored by Resistances 271 | . 189 82 Core Remaining (%) 100 | 100 . . Volleys Fired 35 | . 35 . Largest 2 | . 2 . Hottest 40 | . 40 . Shots Fired 60 | . 60 . Gun 60 | . 60 . Cannon . | . . . Launcher . | . . . Special . | . . . Kinetic 60 | . 60 . Thermal . | . . . Explosive . | . . . Electromagnetic . | . . . Robot Hit Streak 13 | . 13 . Robot Miss Streak 5 | . 5 . Penetration Max . | . . . Secondary Targets 1 | . 1 . Max Gunslinging Chain 1 | . 1 . Shots Hit Robots 42 | . 42 . Core Hits 17 | . 17 . Critical Kills . | . . . Critical Parts Destroyed . | . . . Critical Strikes . | . . . Melee Attacks . | . . . Impact . | . . . Slashing . | . . . Piercing . | . . . Sneak Attacks . | . . . Combat Hostiles . | . . . Follow-up Attacks . | . . . Damage Inflicted 547 | . 547 . Guns 541 | . 541 . Cannons . | . . . Explosions . | . . . Melee . | . . . Ramming 6 | . 6 . Kinetic 541 | . 541 . Thermal . | . . . Explosive . | . . . Electromagnetic . | . . . Impact . | . . . Slashing . | . . . Piercing . | . . . Highest Corruption . | . . . Average Corruption . | . . . Corruption Purged . | . . . Corruption Blocked . | . . . Overload Shots . | . . . Overflow Damage . | . . . Projectiles . | . . . Explosions . | . . . Melee . | . . . Knockbacks . | . . . Impact . | . . . Kinetic . | . . . Secondary . | . . . Self-Inflicted Damage . | . . . Shots . | . . . Rammed 1 | . 1 . Targets Rammed 2 | . 2 . Kicked 1 | . 1 . Crushed . | . . . Highest Temperature 20 | . 20 2 Average Temperature 5 | . 6 2 Received Heat Transfer 505 | . 465 40 Siege Activations . | . . . Martial Activations . | . . . Shielding Activations . | . . . Robots Disrupted . | . . . Combat Hostiles . | . . . Robots Corrupted . | . . . Combat Hostiles . | . . . Parts Fried . | . . . Impact Corruptions . | . . . Robots Melted . | . . . Combat Hostiles . | . . . Parts Melted . | . . . Heat Transferred . | . . . Parts Sabotaged . | . . . Parts Stolen . | . . . Parts Stripped . | . . . Power Chain Reactions . | . . . Alert | -11 -10 -10 ------- Run | Yrd Mat Min Maximum Alert Level . | . . . Low Security (%) 100 | 100 100 100 Level 1 . | . . . Level 2 . | . . . Level 3 . | . . . Level 4 . | . . . Level 5 . | . . . High Security . | . . . Max Security . | . . . Peak Influence 80 | . 80 13 Initial 13 | . . 13 Average 23 | . 34 4 Influence Increases 190 | . 190 . Destroy 0b10 Robot/C 160 | . 160 . Destroy Leader 30 | . 30 . Influence Decreases 190 | . 150 40 Entered New Map 27 | . . 27 Time Decay 120 | . 110 10 Lost Part 43 | . 40 3 Squads Dispatched 1 | . 1 . Investigation 1 | . 1 . Extermination . | . . . Reinforcement . | . . . Assault . | . . . Garrison . | . . . Intercept . | . . . Searches Triggered . | . . . Construction Impeded . | . . . Haulers Reinforced . | . . . Active Scanning Responses . | . . . Cargo Convoy Interrupts . | . . . Stealth | -11 -10 -10 --------- Run | Yrd Mat Min Distress Signals 3 | . 3 . Communications Jammed . | . . . Distress Signals . | . . . Times Spotted 30 | . 14 16 Peak Tracking Total 19 | . 6 19 Tactical Retreats 1 | . . 1 Traps | -11 -10 -10 ------- Run | Yrd Mat Min Traps Triggered 1 | . 1 . Indirectly . | . . . Trap Hack Attempts . | . . . Triggered . | . . . Disarmed . | . . . Reprogrammed . | . . . Reused . | . . . Traps Extracted . | . . . Installed . | . . . Triggered . | . . . Machines | -11 -10 -10 ---------- Run | Yrd Mat Min Machines Disabled . | . . . Max in Single Turn . | . . . Machines Repaired . | . . . Machines Dismantled . | . . . Machines Sabotaged . | . . . Overloaded Fab Kills . | . . . Hacking | -11 -10 -10 --------- Run | Yrd Mat Min Machines Accessed . | . . . Terminals . | . . . Fabricators . | . . . Repair Stations . | . . . Recycling Units . | . . . Scanalyzers . | . . . Garrison Access . | . . . Total Hacks . | . . . Successful . | . . . Failed . | . . . Catastrophic . | . . . Database Lockouts . | . . . Manual . | . . . Terminals . | . . . Fabricators . | . . . Repair Stations . | . . . Recycling Units . | . . . Scanalyzers . | . . . Garrison Access . | . . . Terminal Hacks . | . . . Fabricator Hacks . | . . . Repair Station Hacks . | . . . Recycling Unit Hacks . | . . . Scanalyzer . | . . . Garrison Access Hacks . | . . . Unauthorized Hacks . | . . . Terminals . | . . . Fabricators . | . . . Repair Stations . | . . . Recycling Units . | . . . Scanalyzers . | . . . Garrison Access . | . . . Data Cores Recovered . | . . . Used . | . . . Hacking Detections . | . . . Full Trace Events . | . . . Feedback Events . | . . . Feedback Blocked . | . . . Robot Schematics Acquired . | . . . Robots Built . | . . . Authchips . | . . . Time . | . . . Total Robot Build Rating . | . . . Part Schematics Acquired . | . . . Parts Built . | . . . Authchips . | . . . Time . | . . . Total Part Build Rating . | . . . Part Studies Acquired . | . . . Parts Repaired . | . . . Time . | . . . Parts Recycled . | . . . Recycled Matter . | . . . Retrieved Matter . | . . . Retrieved Components . | . . . Parts Scanalyzed . | . . . Part Schematics Acquired . | . . . Parts Damaged . | . . . Bothacking | -11 -10 -10 ------------ Run | Yrd Mat Min Used RIF Installer . | . . . Robots Hacked . | . . . Non-combat . | . . . Combat . | . . . Robot Hacks Applied . | . . . Relay Couplers Released . | . . . Fabnet Peak Effective % . | . . . Robots Rewired . | . . . Allies Hacked . | . . . Hacks Repelled . | . . . Allies | -11 -10 -10 -------- Run | Yrd Mat Min Total Allies . | . . . Largest Group . | . . . Highest-Rated Group . | . . . Highest-Rated Ally . | . . . Total Orders . | . . . Ally Attacks . | . . . Total Damage . | . . . Kills . | . . . Allies Corrupted . | . . . Allies Melted . | . . . Intel | -11 -10 -10 ------- Run | Yrd Mat Min Active Infowar (turns) . | . . . Robot Analysis Total . | . . . Derelict Logs Recovered 1 | . . 1 Drone Launches . | . . . Drone Recoveries . | . . . Exploration | -11 -10 -10 ------------- Run | Yrd Mat Min Turns Passed 484 | 117 316 51 Spaces Moved 311 | 96 173 42 Core 39 | 26 12 1 Treads 9 | 9 . . Legs 263 | 61 161 41 Wheels . | . . . Hover . | . . . Flight . | . . . Fastest Speed 50 | 50 120 120 Average Speed 116 | 104 122 121 Slowest Speed 200 | 160 150 200 Overloaded Moves . | . . . Propulsion Burnouts . | . . . Robots Hopped . | . . . Potential Cave-ins . | . . . Cave-ins Triggered . | . . . Exploration Rate (%) 11 | 5 19 10 Regions Visited 2 Branch Regions 1 Pre-discovered Areas . | . . . Known Exits Taken . | . . . Unknown Exits Taken 2 | 1 1 . Scrap Searched . | . . . Spaces Dug . | . . . Terrain Destroyed . | . . . Melee . | . . . Projectile . | . . . AOE . | . . . Terrain Rammed . | . . . Walls Destroyed . | . . . Machines Disabled . | . . . Actions | -11 -10 -10 --------- Run | Yrd Mat Min Total 372 | 113 217 42 Wait . | . . . Move 309 | 95 172 42 Hop . | . . . Pick Up 12 | 8 4 . Fast Attach . | . . . Attach 12 | 8 4 . Detach . | . . . Swap . | . . . Drop 2 | 2 . . Fire 35 | . 35 . Melee . | . . . Ram 1 | . 1 . Kick 1 | . 1 . Crush . | . . . Escape Stasis . | . . . Rewire . | . . . Trap . | . . . Miscellaneous . | . . . Route ------- -11/Scrapyard -10/Materials -10/Mines History --------- Turn | Location | Event 8 | -11/Scrapyard | Discovered new exit (range 16) 118 | -11/Scrapyard | Entered Materials 119 | -10/Materials | Met a group of wandering Federalists 309 | -10/Materials | Build established: Mutant 380 | -10/Materials | Lost 3 parts (2n1w) 409 | -10/Materials | Discovered new exit (range 6) 428 | -10/Materials | Core integrity fell below 50% 434 | -10/Materials | Entered Mines 435 | -10/Mines | Assembled infested the area 446 | -10/Mines | Learned Materials terminal intel 475 | -10/Mines | Core integrity fell below 20% 485 | -10/Mines | Destroyed by as-79765 with Assembled Blade Last Messages --------------- G-34 Mercenary destroyed. Acquired 39 matter. G-34 Mercenary destroyed. R-06 Scavenger collects Aluminum Leg. Acquired Aluminum Leg. Acquired Ion Engine. Acquired 36 matter. Acquired 37 matter. Acquired 39 matter. EXIT=FOUND Acquired Power Shielding. LOCATION=UNKNOWN GOAL=ESCAPE Something is scanning the area. ALERT: Infestation in the mines, dispatching Demolisher response squad. Acquired derelict log, extracted data. Data stored: Materials terminal intel. Assault Rifle destroyed. Aluminum Leg destroyed. Aluminum Leg severed. Map ----- +----------------------------------------------------+ | ?????????????????????????????? | | ?????????????????????????????? | | ?????????????????????????????? | | ?????????????????????????????? | | ?????????????????????????????? | | ?????????????????????????????? | | ?????????????????????????????? | | ?????????????????????????????? | | ?????????????????????????????? | | ?????????????????????????????? | | ?????????????????????????????? | | ?????????????????????????????? | | ?????????????????????????????? | | ?????????????????????????????? | | ?????????????????????????????? | | ?????????????????????????????? | | ?????????????????????????????? | | ????????????????########?????? | | ???????????###### ##????? | | ???????????# """ #????? | | ???????????# ### """ a##???? | | ???????????# #?## """ #???? | | ???????##### #??## a a #???? | | ??????## ## #???## a ##??? | | ?# #### # ####### aa#??? | | ?# ## aa@#??? | | ?##### ### #??? | | ?????# ####### #?### ##??? | | ?????# #?????# #???# #???? | | ?????## #?????# #???# #???? | | ??????#####?????# #???# #???? | | ???????????????? #???# #???? | | ???????????????? #???# #???? | | ???????????????? ??? #???? | | ???????????????? ??? #???? | | ???????????????? " ???###???? | | ???????????????? ?????????? | | ???????????????? ##????????? | | ???????????????? ##?????????? | | ????????????????##???????????? | | ?????????????????????????????? | | ?????????????????????????????? | | ?????????????????????????????? | | ?????????????????????????????? | | ?????????????????????????????? | | ?????????????????????????????? | | ?????????????????????????????? | | ?????????????????????????????? | | ?????????????????????????????? | | ?????????????????????????????? | +----------------------------------------------------+ Best States ------------- Heat Dissipation 25 Energy Generation 10 Energy Capacity 250 Matter Stores 271 Matter Capacity 300 Sight Range 16 Terrain Scan Density 10 Resistance: KI 20 Resistance: TH 20 Resistance: EX 20 Resistance: EM 20 Resistance: I 20 Resistance: S 20 Resistance: P 20 Power Shielding 33 Evasion (%) 55 Recoil Reduction 2 Offensive Hacking 10 Item Schematics ----------------- None Robot Schematics ------------------ None Fabricated ------------ Nothing Repaired ---------- Nothing Studied --------- None Alien Tech Used ----------------- None Achievements -------------- DATA ERROR: Steam Global Achievement% For Emergencies Only Storm Trooper Challenges ------------ None Game ------ Seed VampiricLightpackArchive Manual? 0 Play Time 00:06:40 Cumulative 2.3 hours Start 2025.10.28 @ 13:07:35 End 2025.10.28 @ 13:13:42 Sessions 1 Manual Loads 0 Difficulty Adventurer Special Mode None Game No. 4 Rogue 0 Adventurer 4 Explorer 0 Win Type - Total 0 Types 0/0/0/0/0/0/0/0/0/0 Lore% 3 Gallery% 6 Achievement% 4 Wizard Run 0 Options --------- Layout 0 ASCII 0 Keyboard 0 Movement Arrows Keybinds 0 Fullscreen 2 Font 18/SmallcapsGlow Map View 76x50 Zoom Use 0% Tactical HUD 0 Map Filters NONE Filters NONE Steam 1 RUN: 24d1fda5-87ba-4c6d-968a-8c27f4a2d529